bitfinex/quotes_SOLUSD_20240615
["timestamp","ask_amount","ask_price","bid_price","bid_amount"]
[1718460969005,7.671,144.7,144.66,5.63]
[1718460969574,2.5572,144.69,144.61,15.9538]
[1718460969896,2.5572,144.69,144.65,5.63]
[1718460970102,8.1871,144.7,144.64,5.63]
[1718460970482,2.5571,144.7,144.65,5.63]
[1718460970690,2.5571,144.7,144.61,15.9538]
[1718460970996,7.6705,144.71,144.65,5.63]
[1718460971200,28.4995,144.72,144.66,5.63]
[1718460971410,29.0158,144.72,144.66,5.63]
[1718460971593,2.557,144.7,144.62,42.86]
[1718460971900,5.63,144.71,144.62,42.86]
[1718460972277,46.9129,144.72,144.63,0.34]
[1718460972477,29.0159,144.72,144.64,0.17]
[1718460972780,29.0159,144.72,144.64,0.34]
[1718460973478,29.0159,144.72,144.62,42.52]
[1718460973479,2.557,144.7,144.65,5.63]
[1718460973673,28.6431,144.7,144.65,5.63]
[1718460973877,8.1872,144.69,144.64,5.63]
[1718460974100,5.63,144.69,144.64,5.63]
[1718460974894,13.3011,144.7,144.64,5.63]
[1718460975398,8.1871,144.7,144.64,5.63]
[1718460976682,8.187,144.7,144.64,5.63]
[1718460977488,10.2287,144.69,144.62,20.0]
[1718460977691,10.2287,144.69,144.58,20.0]
[1718460977692,8.1874,144.68,144.58,20.0]
[1718460977883,8.1874,144.68,144.62,5.63]
[1718460978084,5.63,144.67,144.61,5.63]
[1718460978285,5.63,144.67,144.62,20.0]
[1718460978483,2.5574,144.68,144.62,25.63]
[1718460978484,5.63,144.68,144.62,25.63]
[1718460978705,5.63,144.69,144.63,5.63]
[1718460979008,5.63,144.68,144.63,5.63]
[1718460979188,5.63,144.69,144.63,5.63]
[1718460979384,5.63,144.69,144.64,5.63]
[1718460979589,5.63,144.7,144.65,5.63]
[1718460979989,41.2828,144.72,144.65,5.63]
[1718460980191,8.1868,144.71,144.65,5.63]
[1718460980380,13.3004,144.71,144.65,5.63]
[1718460980582,31.1986,144.71,144.65,5.63]
[1718460981510,2.557,144.7,144.65,5.63]
[1718460981710,5.63,144.7,144.65,5.63]
[1718460981913,8.187,144.7,144.65,5.63]
[1718460983919,5.63,144.7,144.65,5.63]
[1718460984100,8.187,144.7,144.65,5.63]
[1718460984753,23.0155,144.69,144.62,35.9538]
[1718460984919,23.0155,144.69,144.57,22.45595373]
[1718460984920,5.63,144.66,144.57,21.3933]
[1718460985225,5.63,144.66,144.61,5.63]
[1718460986116,5.63,144.67,144.61,5.63]
[1718460986831,8.1875,144.67,144.57,21.3933]
[1718460987030,2.5578,144.66,144.58,20.0]
[1718460987198,8.1878,144.66,144.58,20.0]
[1718460987398,8.1878,144.66,144.6,5.63]
[1718460988416,5.63,144.66,144.6,5.63]
[1718460991928,2.7279,144.65,144.58,20.0]
[1718460992233,5.63,144.63,144.57,5.63]
[1718460992430,5.63,144.63,144.58,20.0]
[1718460993105,5.63,144.63,144.58,25.63]
[1718460993533,5.63,144.63,144.55,0.17]
[1718460993723,5.63,144.63,144.58,5.63]
[1718460994514,5.63,144.62,144.54,0.68]
[1718460994915,5.63,144.62,144.57,5.63]
[1718460995109,5.63,144.62,144.56,5.63]
[1718460995937,5.63,144.62,144.53,21.1662]
[1718460996229,5.63,144.62,144.56,5.63]
[1718460996610,5.63,144.6,144.52,0.34]
[1718460996831,5.63,144.59,144.54,5.63]
[1718460997030,5.63,144.59,144.55,20.0]
[1718460997528,5.63,144.6,144.55,20.0]
[1718460997733,5.63,144.6,144.54,5.63]
[1718460997938,5.63,144.6,144.55,20.0]
[1718460999234,5.63,144.61,144.55,25.63]
[1718461000353,27.2812,144.63,144.57,5.63]
[1718461000642,27.2812,144.63,144.55,20.0]
[1718461000643,21.6512,144.63,144.58,5.63]
[1718461000833,15.048,144.63,144.59,5.63]
[1718461003137,15.048,144.63,144.58,5.63]
[1718461008520,15.048,144.63,144.59,5.63]
[1718461011822,17.6062,144.63,144.59,5.63]
[1718461012521,19.3919,144.66,144.59,5.63]
[1718461012725,8.1879,144.65,144.59,5.63]
[1718461013239,8.1879,144.65,144.6,5.63]
[1718461015334,5.63,144.65,144.6,5.63]
[1718461019322,6.6032,144.66,144.6,5.63]
[1718461019633,6.6032,144.66,144.61,5.63]
[1718461019839,6.6032,144.66,144.62,5.63]
[1718461020444,19.9064,144.66,144.56,100.34]
[1718461020745,27.5795,144.66,144.61,5.63]
[1718461021123,6.6032,144.66,144.61,5.63]
[1718461021320,6.6032,144.66,144.62,5.63]
[1718461022039,16.6662,144.67,144.62,5.63]
[1718461022252,16.6662,144.67,144.63,5.63]
[1718461022748,16.6662,144.67,144.62,5.63]
[1718461023425,16.6662,144.67,144.63,5.63]
[1718461025953,11.8401,144.69,144.64,5.63]
[1718461025954,6.2101,144.69,144.64,5.63]
[1718461026250,6.2101,144.69,144.64,20.0]
[1718461026842,6.2101,144.69,144.63,20.17]
[1718461030056,8.7673,144.69,144.63,20.0]
[1718461030243,31.7822,144.69,144.64,5.63]
[1718461030957,8.7674,144.69,144.64,5.63]
[1718461031456,13.8817,144.69,144.64,5.63]
[1718461031659,8.7674,144.69,144.64,5.63]
[1718461032363,6.2101,144.69,144.64,5.63]
[1718461032536,8.7672,144.69,144.64,5.63]
[1718461032957,6.2101,144.69,144.64,5.63]
[1718461034136,6.2101,144.69,144.63,20.0]
[1718461034335,6.2101,144.69,144.64,5.63]
[1718461037169,5.63,144.67,144.62,5.63]
[1718461037371,5.63,144.67,144.63,20.0]
[1718461038355,8.1874,144.68,144.63,20.0]
[1718461039162,21.5901,144.66,144.58,0.17]
[1718461039354,29.2633,144.66,144.58,20.17]
[1718461039549,15.9601,144.66,144.6,5.63]
[1718461039784,15.9601,144.66,144.61,20.0]
[1718461045367,21.5901,144.66,144.61,25.63]
[1718461046449,15.9601,144.66,144.61,25.63]
[1718461047244,15.9601,144.66,144.62,5.63]
[1718461049255,15.9601,144.66,144.63,5.63]
[1718461051665,30.1896,144.69,144.63,5.63]
[1718461051852,35.8196,144.69,144.64,5.63]
[1718461052365,43.4911,144.69,144.64,5.63]
[1718461052575,2.5573,144.68,144.64,5.63]
[1718461053375,7.672,144.68,144.64,5.63]
[1718461054074,2.5575,144.67,144.63,5.63]
[1718461054248,31.2037,144.68,144.63,5.63]
[1718461054449,2.5575,144.67,144.63,5.63]
[1718461055049,31.2037,144.68,144.63,5.63]
[1718461055658,25.5737,144.68,144.63,5.63]
[1718461055974,31.2037,144.68,144.63,5.63]
[1718461056158,13.3022,144.68,144.63,5.63]
[1718461056968,8.1875,144.68,144.63,5.63]
[1718461057166,2.5575,144.68,144.63,5.63]
[1718461057868,8.1875,144.68,144.63,5.63]
[1718461058078,13.3023,144.68,144.63,5.63]
[1718461059459,8.1875,144.68,144.63,5.63]
[1718461060564,35.8196,144.69,144.64,5.63]
[1718461060761,43.4911,144.69,144.64,5.63]
[1718461061072,43.4911,144.69,144.63,5.63]
[1718461061678,43.4911,144.69,144.61,20.0]
[1718461061862,2.5575,144.67,144.63,5.63]
[1718461062058,28.648,144.67,144.59,20.0]
[1718461062268,31.2056,144.67,144.62,5.63]
[1718461062473,28.6481,144.67,144.62,5.63]
[1718461062677,13.3028,144.67,144.62,5.63]
[1718461062876,31.2056,144.67,144.62,5.63]
[1718461063267,13.3028,144.67,144.62,5.63]
[1718461063459,8.1876,144.67,144.62,5.63]
[1718461064183,5.63,144.67,144.62,5.63]
[1718461066185,13.3025,144.68,144.62,5.63]
[1718461066382,8.1875,144.68,144.62,5.63]
[1718461066586,8.1874,144.68,144.62,5.63]
[1718461068501,5.63,144.68,144.62,5.63]
[1718461070775,8.1873,144.68,144.62,5.63]
[1718461071690,5.63,144.68,144.58,20.17]
[1718461071876,8.1874,144.68,144.62,5.63]
[1718461073304,5.63,144.68,144.62,5.63]
[1718461075508,8.1873,144.68,144.62,5.63]
[1718461075676,5.63,144.68,144.62,5.63]
[1718461077115,8.1873,144.68,144.59,0.51]
[1718461077339,5.63,144.68,144.62,5.63]
[1718461077809,48.0902,144.69,144.62,5.63]
[1718461078012,5.63,144.68,144.62,5.63]
[1718461083004,8.1883,144.63,144.55,24.6876]
[1718461083336,5.63,144.61,144.55,21.8573]
[1718461083941,5.63,144.61,144.55,16.2273]
[1718461084099,5.63,144.61,144.56,5.63]
[1718461084439,5.63,144.61,144.57,20.0]
[1718461085033,5.63,144.61,144.56,25.63]
[1718461085819,5.63,144.61,144.56,5.63]
[1718461090603,5.63,144.6,144.52,6.3242]
[1718461090807,5.63,144.6,144.54,5.63]
[1718461091001,2.5587,144.61,144.55,20.0]
[1718461091002,5.63,144.59,144.55,20.0]
[1718461091530,5.63,144.59,144.54,20.0]
[1718461091718,5.63,144.59,144.54,5.63]
[1718461093635,21.2689,144.62,144.57,5.63]
[1718461096240,21.2689,144.62,144.56,5.63]
[1718461098515,15.6389,144.62,144.57,5.63]
[1718461098723,21.2689,144.62,144.57,5.63]
[1718461099815,23.8273,144.62,144.57,5.63]
[1718461100725,2.5586,144.61,144.57,5.63]
[1718461100923,8.1886,144.61,144.55,5.63]
[1718461101126,5.63,144.6,144.55,5.63]
[1718461101819,5.63,144.59,144.51,15.5055]
[1718461102011,13.3069,144.59,144.53,5.63]
[1718461102333,5.63,144.57,144.48,6.3242]
[1718461102539,5.63,144.57,144.51,5.63]
[1718461104849,7.6765,144.6,144.52,5.63]
[1718461105018,5.63,144.59,144.53,5.63]
[1718461105427,5.63,144.59,144.54,5.63]
[1718461107923,5.63,144.59,144.48,28.8442]
[1718461107924,13.3075,144.58,144.48,28.8442]
[1718461108119,5.63,144.57,144.52,5.63]
[1718461108526,7.6771,144.59,144.52,5.63]
[1718461108726,15.3539,144.59,144.52,5.63]
[1718461109952,7.6771,144.59,144.52,5.63]
[1718461110838,2.5591,144.58,144.52,5.63]
[1718461111139,25.5899,144.59,144.52,5.63]
[1718461111340,25.5899,144.59,144.51,5.63]
[1718461111666,5.63,144.57,144.51,5.63]
[1718461111957,5.63,144.57,144.52,5.63]
[1718461112255,21.4376,144.57,144.51,5.63]
[1718461112427,5.63,144.56,144.51,5.63]
[1718461112627,15.8076,144.57,144.51,5.63]
[1718461112848,21.4376,144.57,144.51,5.63]
[1718461113231,15.8076,144.57,144.52,5.63]
[1718461113945,15.8076,144.57,144.53,5.63]
[1718461115553,15.8076,144.6,144.54,5.63]
[1718461115853,15.8076,144.6,144.48,149.5942]
[1718461115854,15.8076,144.6,144.55,5.63]
[1718461117756,15.8076,144.6,144.49,0.17]
[1718461117958,5.63,144.59,144.53,5.63]
[1718461118160,21.4376,144.6,144.54,5.63]
[1718461118332,21.4376,144.6,144.55,5.63]
[1718461118762,15.8076,144.6,144.55,5.63]
[1718461118934,21.4376,144.6,144.55,5.63]
[1718461119143,21.4376,144.6,144.49,20.68]
[1718461119447,21.4376,144.6,144.55,5.63]
[1718461122442,5.63,144.59,144.49,20.68]
[1718461122750,5.63,144.59,144.54,5.63]
[1718461123165,5.63,144.59,144.53,5.63]
[1718461126751,5.63,144.59,144.54,5.63]
[1718461134663,5.63,144.59,144.54,5.63]
[1718461135157,21.4376,144.6,144.54,5.63]
[1718461136272,15.8076,144.6,144.54,5.63]
[1718461136440,15.8076,144.6,144.58,5.63]
[1718461137554,6.5084,144.61,144.58,5.63]
[1718461139046,6.5084,144.61,144.53,0.17]
[1718461139246,6.5084,144.61,144.53,20.68]
[1718461139552,6.5084,144.61,144.58,5.63]
[1718461140365,22.5849,144.64,144.55,5.63]
[1718461140564,22.5849,144.64,144.61,5.63]
[1718461140866,22.5849,144.64,144.56,22.0577828]
[1718461141161,22.5849,144.64,144.61,5.63]
[1718461143262,22.5849,144.64,144.6,5.63]
[1718461143470,25.143,144.64,144.56,20.68]
[1718461143767,25.143,144.64,144.59,5.63]
[1718461143965,22.5849,144.64,144.59,5.63]
[1718461144463,22.5849,144.64,144.6,5.63]
[1718461145444,22.5849,144.64,144.56,20.68]
[1718461145445,16.3357,144.64,144.56,20.68]
[1718461145645,16.3357,144.64,144.56,43.97293133]
[1718461145845,15.3984,144.67,144.62,5.63]
[1718461146269,15.3984,144.67,144.63,5.63]
[1718461149569,40.9739,144.67,144.58,0.17]
[1718461149745,23.071,144.67,144.62,5.63]
[1718461149942,2.5577,144.66,144.62,5.63]
[1718461150148,38.4165,144.67,144.58,0.34]
[1718461150149,46.6041,144.67,144.61,5.63]
[1718461150567,23.586,144.67,144.61,5.63]
[1718461151152,23.586,144.67,144.62,5.63]
[1718461151359,15.3984,144.67,144.62,5.63]
[1718461151553,21.0284,144.67,144.62,5.63]
[1718461154468,15.3984,144.67,144.63,5.63]
[1718461158279,15.3984,144.67,144.62,5.63]
[1718461158894,2.5577,144.66,144.6,5.63]
[1718461159059,33.3017,144.67,144.6,5.63]
[1718461159060,15.3984,144.67,144.6,5.63]
[1718461159264,21.0284,144.67,144.61,5.63]
[1718461159469,21.0284,144.67,144.62,5.63]
[1718461159686,23.5859,144.67,144.62,5.63]
[1718461160578,28.7009,144.67,144.61,5.63]
[1718461160969,23.5859,144.67,144.61,5.63]
[1718461161587,28.7009,144.67,144.61,5.63]
[1718461163486,23.5859,144.67,144.61,5.63]
[1718461164083,21.0284,144.67,144.61,5.63]
[1718461164275,23.5859,144.67,144.61,5.63]
[1718461164476,21.0284,144.67,144.61,5.63]
[1718461164997,15.3984,144.67,144.62,5.63]
[1718461168091,21.5742,144.72,144.66,5.63]
[1718461168294,21.5742,144.72,144.68,5.63]
[1718461168488,21.5742,144.72,144.64,0.17]
[1718461168669,21.5742,144.72,144.68,5.63]
[1718461169797,21.5742,144.72,144.69,5.63]
[1718461171473,21.5742,144.72,144.64,0.17]
[1718461171670,21.5742,144.72,144.68,5.63]
[1718461172080,21.5742,144.72,144.67,5.63]
[1718461174184,21.5742,144.72,144.68,5.63]
[1718461181608,21.5742,144.72,144.64,0.17]
[1718461181795,21.5742,144.72,144.68,5.63]
[1718461185800,21.5742,144.72,144.63,0.51]
[1718461185987,21.5742,144.72,144.67,5.63]
[1718461186406,8.04887816,144.78,144.69,5.63]
[1718461186626,0.8525497,144.78,144.75,5.63]
[1718461186787,0.8525497,144.78,144.76,5.63]
[1718461186986,0.8525497,144.78,144.75,5.63]
[1718461187700,0.8525497,144.78,144.7,20.34]
[1718461187906,8.5193497,144.78,144.7,20.0]
[1718461188110,5.63,144.77,144.71,5.63]
[1718461188487,9.0381497,144.78,144.72,5.63]
[1718461188915,0.8525497,144.78,144.72,5.63]
[1718461189213,0.8525497,144.78,144.73,5.63]
[1718461189989,0.8525497,144.78,144.74,5.63]
[1718461191387,0.8525497,144.78,144.77,5.63]
[1718461191832,0.8525497,144.78,144.75,0.51]
[1718461192003,0.8525497,144.78,144.77,5.63]
[1718461196109,0.8525497,144.78,144.72,16.5343154]
[1718461196413,0.8525497,144.78,144.74,5.63]
[1718461196991,0.8525497,144.78,144.71,9.08343545]
[1718461197219,0.8525497,144.78,144.74,5.63]
[1718461198219,0.8525497,144.78,144.75,5.63]
[1718461200196,0.8525497,144.78,144.71,9.08343545]
[1718461200417,0.8525497,144.78,144.75,5.63]
[1718461200936,0.8525497,144.78,144.76,5.63]
[1718461202502,0.8525497,144.78,144.74,5.63]
[1718461205322,0.8525497,144.78,144.7,16.8065]
[1718461205531,0.8525497,144.78,144.73,5.63]
[1718461206531,0.3525497,144.78,144.73,5.63]
[1718461207411,0.3525497,144.78,144.74,5.63]
[1718461214529,15.2976,144.77,144.71,20.0]
[1718461214715,6.1766,144.76,144.7,20.0]
[1718461215053,6.1766,144.76,144.71,5.63]
[1718461215538,6.1766,144.76,144.7,20.0]
[1718461215740,6.1766,144.76,144.72,5.63]
[1718461219131,15.2976,144.77,144.73,5.63]
[1718461219313,15.2976,144.77,144.74,5.63]
[1718461220118,0.3525497,144.78,144.76,5.63]
[1718461220313,0.3525497,144.78,144.77,5.63]
[1718461220617,0.3525497,144.78,144.74,0.17]
[1718461220832,0.3525497,144.78,144.77,5.63]
[1718461223317,0.3525497,144.78,144.74,0.68]
[1718461223318,0.3525497,144.78,144.74,0.17]
[1718461223518,0.3525497,144.78,144.76,5.63]
[1718461224354,0.3525497,144.78,144.73,20.0]
[1718461224529,0.3525497,144.78,144.75,5.63]
[1718461224725,0.3525497,144.78,144.71,20.0]
[1718461224930,0.3525497,144.78,144.76,5.63]
[1718461225464,0.3525497,144.78,144.71,29.2872952]
[1718461225634,0.3525497,144.78,144.76,5.63]
[1718461225828,0.3525497,144.78,144.75,5.63]
[1718461226036,0.3525497,144.78,144.72,0.68]
[1718461226229,0.3525497,144.78,144.75,5.63]
[1718461227049,0.3525497,144.78,144.72,0.68]
[1718461227252,0.3525497,144.78,144.75,5.63]
[1718461228340,0.3525497,144.78,144.76,5.63]
[1718461228543,0.3525497,144.78,144.77,5.63]
[1718461229660,0.3525497,144.78,144.72,0.68]
[1718461229830,0.3525497,144.78,144.77,5.63]
[1718461232367,0.3525497,144.78,144.77,5.97]
[1718461232566,0.3525497,144.78,144.77,26.31]
[1718461235864,22.7121,144.9,144.86,5.63]
[1718461238793,22.7121,144.9,144.8,9.9672952]
[1718461238794,28.3421,144.9,144.8,9.9672952]
[1718461238941,5.63,144.88,144.8,0.68]
[1718461239145,5.63,144.89,144.83,5.63]
[1718461239762,28.3421,144.9,144.84,5.63]
[1718461240067,22.7121,144.9,144.84,5.63]
[1718461240259,22.7121,144.9,144.8,0.68]
[1718461240260,28.3421,144.9,144.8,0.68]
[1718461240581,28.3421,144.9,144.84,5.63]
[1718461240958,28.3421,144.9,144.85,5.63]
[1718461241663,22.7121,144.9,144.85,5.63]
[1718461241955,28.3421,144.9,144.85,5.63]
[1718461242768,28.3421,144.9,144.8,0.68]
[1718461242958,28.3421,144.9,144.85,5.63]
[1718461243156,5.63,144.89,144.8,0.68]
[1718461243488,5.63,144.89,144.83,5.63]
[1718461244074,5.63,144.88,144.83,5.63]
[1718461244776,5.63,144.88,144.79,20.0]
[1718461245074,22.7121,144.9,144.85,5.63]
[1718461245376,22.7121,144.9,144.86,5.63]
[1718461245878,22.7121,144.9,144.85,5.63]
[1718461246249,22.7121,144.9,144.8,0.68]
[1718461246448,28.3421,144.9,144.85,5.63]
[1718461246652,28.3421,144.9,144.8,0.68]
[1718461246653,5.63,144.89,144.8,0.68]
[1718461246852,5.63,144.89,144.83,5.63]
[1718461250961,8.1838,144.88,144.8,0.17]
[1718461251159,5.63,144.87,144.81,5.63]
[1718461255888,5.63,144.87,144.82,5.63]
[1718461256585,5.63,144.87,144.79,20.0]
[1718461256781,5.63,144.87,144.82,5.63]
[1718461259285,5.63,144.88,144.82,5.63]
[1718461259768,5.63,144.87,144.82,5.63]
[1718461260163,5.63,144.87,144.81,5.63]
[1718461260582,5.63,144.87,144.82,5.63]
[1718461260780,30.5428,144.9,144.82,5.63]
[1718461260963,25.4357,144.9,144.83,5.63]
[1718461261162,5.63,144.88,144.83,5.63]
[1718461261381,5.63,144.88,144.82,5.63]
[1718461261995,30.5427,144.9,144.82,5.63]
[1718461262193,5.63,144.88,144.82,5.63]
[1718461262573,5.63,144.89,144.83,5.63]
[1718461262793,8.1836,144.89,144.83,5.63]
[1718461263286,5.63,144.89,144.83,5.63]
[1718461263487,48.417,144.9,144.83,5.63]
[1718461263689,5.63,144.89,144.83,5.63]
[1718461264193,5.63,144.88,144.82,5.63]
[1718461264770,2.5536,144.89,144.82,5.63]
[1718461264966,5.63,144.88,144.82,5.63]
[1718461265596,22.7121,144.9,144.82,5.63]
[1718461265895,22.7121,144.9,144.78,0.68]
[1718461265896,5.63,144.89,144.83,5.63]
[1718461267197,5.63,144.89,144.78,0.68]
[1718461267198,22.7121,144.9,144.85,5.63]
[1718461269808,17.4314497,144.93,144.88,5.63]
[1718461269977,23.0614497,144.93,144.88,5.63]
[1718461270978,17.4314497,144.93,144.88,5.63]
[1718461271183,17.4314497,144.93,144.84,7.2214]
[1718461271184,17.4314497,144.93,144.89,5.63]
[1718461271878,17.4314497,144.93,144.9,5.63]
[1718461272106,0.8525497,144.93,144.9,5.63]
[1718461272283,0.8525497,144.93,144.91,5.63]
[1718461275779,0.8525497,144.93,144.86,15.809]
[1718461276003,0.8525497,144.93,144.9,5.63]
[1718461276304,0.8525497,144.93,144.89,5.63]
[1718461278109,0.8525497,144.93,144.9,5.63]
[1718461278415,0.8525497,144.93,144.91,5.63]
[1718461278701,0.8525497,144.93,144.9,5.63]
[1718461278892,0.8525497,144.93,144.89,5.63]
[1718461280992,0.8525497,144.93,144.87,20.0]
[1718461281180,0.8525497,144.93,144.87,5.63]
[1718461281181,5.63,144.92,144.87,5.63]
[1718461281894,5.63,144.92,144.85,20.17]
[1718461282084,6.4825497,144.93,144.87,5.63]
[1718461282506,6.4825497,144.93,144.85,20.0]
[1718461282706,7.1827497,144.93,144.86,5.63]
[1718461282901,22.2036,144.92,144.87,20.0]
[1718461283092,22.2036,144.92,144.86,5.63]
[1718461284704,16.5736,144.92,144.84,5.63]
[1718461284907,5.63,144.91,144.85,5.63]
[1718461285115,16.5736,144.92,144.87,5.63]
[1718461285286,16.5736,144.92,144.88,5.63]
[1718461285618,16.5736,144.92,144.89,5.63]
[1718461286185,16.5736,144.92,144.83,122.52]
[1718461286186,16.5736,144.92,144.88,5.63]
[1718461286993,16.5736,144.92,144.84,0.17]
[1718461287188,16.5736,144.92,144.88,5.63]
[1718461292518,0.8525497,144.93,144.88,5.63]
[1718461292699,0.8525497,144.93,144.89,5.63]
[1718461296016,0.8525497,144.93,144.89,5.63]
[1718461297417,0.3525497,144.93,144.89,5.63]
[1718461297795,0.3525497,144.93,144.88,5.63]
[1718461298019,0.3525497,144.93,144.84,0.68]
[1718461298194,5.9825497,144.93,144.87,5.63]
[1718461298394,5.9825497,144.93,144.88,20.0]
[1718461298601,5.63,144.91,144.86,5.63]
[1718461299631,5.63,144.91,144.82,15.809]
[1718461299850,5.63,144.9,144.85,5.63]
[1718461300137,5.63,144.9,144.84,5.63]
[1718461300304,5.63,144.9,144.85,20.0]
[1718461301829,5.63,144.9,144.81,20.0]
[1718461302025,5.63,144.9,144.84,5.63]
[1718461302196,22.9038,144.91,144.85,20.0]
[1718461302400,5.63,144.89,144.84,5.63]
[1718461302924,5.63,144.9,144.85,5.63]
[1718461303127,22.9038,144.91,144.86,5.63]
[1718461303733,22.9038,144.91,144.87,5.63]
[1718461304030,22.9038,144.91,144.86,5.63]
[1718461304322,5.63,144.9,144.85,5.63]
[1718461304717,5.63,144.9,144.84,5.63]
[1718461305029,5.63,144.9,144.85,20.0]
[1718461305505,5.63,144.89,144.82,0.34]
[1718461305706,22.9038,144.91,144.84,5.63]
[1718461305906,5.63,144.89,144.84,5.63]
[1718461306604,5.63,144.9,144.81,0.34]
[1718461306803,5.63,144.89,144.83,5.63]
[1718461307028,2.5537,144.89,144.77,6.0204]
[1718461307237,6.2385,144.87,144.8,5.63]
[1718461307555,5.63,144.84,144.76,15.643996]
[1718461307710,5.63,144.82,144.77,5.63]
[1718461307899,5.63,144.82,144.75,8.79567854]
[1718461308102,5.63,144.82,144.77,5.63]
[1718461308525,21.7333,144.83,144.77,5.63]
[1718461308713,16.1033,144.83,144.78,5.63]
[1718461308900,16.1033,144.83,144.75,8.79567854]
[1718461309106,16.1033,144.83,144.78,5.63]
[1718461309812,16.1033,144.83,144.75,0.17]
[1718461310014,16.1033,144.83,144.78,5.63]
[1718461310319,21.7333,144.83,144.77,5.63]
[1718461310721,5.63,144.82,144.74,0.17]
[1718461311032,5.63,144.81,144.76,5.63]
[1718461311235,16.1033,144.83,144.77,20.0]
[1718461311236,5.63,144.82,144.77,20.0]
[1718461312113,21.7333,144.83,144.77,20.0]
[1718461312314,21.7333,144.83,144.77,5.63]
[1718461312919,5.63,144.82,144.77,5.63]
[1718461316332,16.1033,144.83,144.77,5.63]
[1718461316656,16.1033,144.83,144.79,5.63]
[1718461316948,16.1033,144.83,144.8,5.63]
[1718461319245,16.1033,144.83,144.79,5.63]
[1718461320722,16.1033,144.83,144.8,5.63]
[1718461320923,16.1033,144.83,144.79,5.63]
[1718461322155,16.1033,144.83,144.8,5.63]
[1718461324873,16.1033,144.83,144.79,5.63]
[1718461325232,21.7333,144.83,144.77,5.63]
[1718461325740,21.7333,144.83,144.78,20.0]
[1718461326165,5.63,144.82,144.78,20.0]
[1718461327861,5.63,144.82,144.71,46.10404679]
[1718461327862,8.1849,144.82,144.71,46.10404679]
[1718461328044,5.63,144.79,144.72,20.0]
[1718461328250,5.63,144.79,144.74,5.63]
[1718461328448,6.4819,144.82,144.75,20.0]
[1718461328667,5.63,144.81,144.76,5.63]
[1718461329042,5.63,144.81,144.75,20.0]
[1718461329360,5.63,144.8,144.72,20.0]
[1718461329555,5.63,144.8,144.75,5.63]
[1718461330455,12.1119,144.82,144.76,25.63]
[1718461330782,5.63,144.81,144.76,25.63]